bitfinex/quotes_BTCUSD_20250719
["timestamp","ask_amount","ask_price","bid_price","bid_amount"]
[1752898424147,0.02833704,118400.0,118390.0,0.60791052]
[1752898424362,0.02833704,118400.0,118390.0,0.46121509]
[1752898424567,0.02833704,118400.0,118390.0,0.60791052]
[1752898424768,0.03678291,118400.0,118390.0,0.60791052]
[1752898425159,0.21414776,118400.0,118390.0,0.59946437]
[1752898425371,0.20570225,118400.0,118390.0,0.59946437]
[1752898425902,0.03678334,118400.0,118390.0,0.59946437]
[1752898426325,0.03678334,118400.0,118390.0,0.60131437]
[1752898426720,0.03678334,118400.0,118390.0,0.59946437]
[1752898427032,0.03678334,118400.0,118390.0,0.67281573]
[1752898427445,0.0283374,118400.0,118390.0,0.67281573]
[1752898427663,0.02833704,118400.0,118390.0,0.7670215]
[1752898427861,0.03678291,118400.0,118390.0,0.7670215]
[1752898428518,0.20570182,118400.0,118390.0,0.75012912]
[1752898428742,0.20570182,118400.0,118390.0,0.6643695]
[1752898428960,0.20570182,118400.0,118390.0,0.6559232]
[1752898429491,0.19725631,118400.0,118390.0,0.65592327]
[1752898429697,0.19725631,118400.0,118390.0,0.66436964]
[1752898430135,0.18881058,118400.0,118390.0,0.66436964]
[1752898431268,0.18881058,118400.0,118390.0,0.43587648]
[1752898431507,0.18881058,118400.0,118390.0,0.65592327]
[1752898431921,0.18036478,118400.0,118390.0,0.63187683]
[1752898432143,0.18036478,118400.0,118390.0,0.23445028]
[1752898432357,0.17191891,118400.0,118390.0,0.43919707]
[1752898433235,0.17191891,118400.0,118390.0,0.44764365]
[1752898433638,0.17191891,118400.0,118390.0,0.61657683]
[1752898435644,0.17191891,118400.0,118390.0,0.60813025]
[1752898436456,0.17191891,118400.0,118390.0,0.43919707]
[1752898437653,0.17191891,118400.0,118390.0,0.44764372]
[1752898438765,0.17191891,118400.0,118390.0,0.21915028]
[1752898439007,0.17502891,118400.0,118390.0,0.43919707]
[1752898441415,0.17502891,118400.0,118390.0,0.21915028]
[1752898441625,0.17502891,118400.0,118390.0,0.43919707]
[1752898442637,0.17502891,118400.0,118390.0,0.21915028]
[1752898442839,0.17502891,118400.0,118390.0,0.43919707]
[1752898443041,0.17502891,118400.0,118390.0,0.08747028]
[1752898443258,0.17716891,118400.0,118390.0,0.43903707]
[1752898446223,0.17716891,118400.0,118390.0,0.21899028]
[1752898446434,0.17716891,118400.0,118390.0,0.43903707]
[1752898447897,0.17716891,118400.0,118390.0,0.21899028]
[1752898448088,0.17716891,118400.0,118390.0,0.43903707]
[1752898449456,0.17716891,118400.0,118390.0,0.52479669]
[1752898450617,0.17716891,118400.0,118390.0,0.43903707]
[1752898454438,0.17716891,118400.0,118390.0,0.44748365]
[1752898454622,0.17716891,118400.0,118390.0,0.44748372]
[1752898454943,0.17716891,118400.0,118390.0,0.62486348]
[1752898455333,0.17716891,118400.0,118390.0,0.63330999]
[1752898456590,0.18561478,118400.0,118390.0,0.64175643]
[1752898457609,0.18347478,118400.0,118390.0,0.42170964]
[1752898457822,0.18347478,118400.0,118390.0,0.64175643]
[1752898458061,0.18347478,118400.0,118390.0,0.4132632]
[1752898458253,0.18347478,118400.0,118390.0,0.63330999]
[1752898459292,0.01989153,118400.0,118390.0,0.64175629]
[1752898460002,0.18881044,118400.0,118390.0,0.64175643]
[1752898460876,0.18881044,118400.0,118390.0,0.6502028]
[1752898461307,0.18881044,118400.0,118390.0,0.42170936]
[1752898461308,0.02833747,118400.0,118390.0,0.42170936]
[1752898461533,0.02833747,118400.0,118390.0,0.65020238]
[1752898461740,0.19725638,118400.0,118390.0,0.42170936]
[1752898461957,0.19725638,118400.0,118390.0,0.64175615]
[1752898462378,0.19725638,118400.0,118390.0,0.65020245]
[1752898463198,0.02833747,118400.0,118390.0,0.6502021]
[1752898463576,0.02833747,118400.0,118390.0,0.64175587]
[1752898464033,0.02833747,118400.0,118390.0,0.63330957]
[1752898464235,0.19725638,118400.0,118390.0,0.6248632]
[1752898464889,0.18881072,118400.0,118390.0,0.6248632]
[1752898465029,0.18036485,118400.0,118390.0,0.6248632]
[1752898465243,0.18347485,118400.0,118390.0,0.61641676]
[1752898465929,0.17502891,118400.0,118390.0,0.60797025]
[1752898466213,0.17704891,118400.0,118390.0,0.6164169]
[1752898468430,0.17704891,118400.0,118390.0,0.62486334]
[1752898469258,0.17704891,118400.0,118390.0,0.40481655]
[1752898469465,0.17704891,118400.0,118390.0,0.62486334]
[1752898471604,0.003,118400.0,118390.0,0.71906933]
[1752898471818,0.003,118400.0,118390.0,0.76046548]
[1752898472033,0.01989088,118400.0,118390.0,0.76046548]
[1752898472870,0.02833646,118400.0,118390.0,0.76046548]
[1752898473175,0.02833646,118400.0,118390.0,0.54041869]
[1752898473420,0.03678219,118400.0,118390.0,0.76046548]
[1752898474045,0.01144537,118400.0,118390.0,0.76046548]
[1752898474253,0.01989081,118400.0,118390.0,0.76046548]
[1752898474598,0.02833639,118400.0,118390.0,0.76046548]
[1752898474988,0.03678212,118400.0,118390.0,0.76046548]
[1752898475189,0.02833639,118400.0,118390.0,0.75861548]
[1752898475400,0.03678212,118400.0,118390.0,0.75861548]
[1752898476592,0.03678205,118400.0,118390.0,0.75861548]
[1752898477543,0.02833639,118400.0,118390.0,0.75861548]
[1752898478269,0.03678212,118400.0,118390.0,0.75861548]
[1752898478504,0.02833639,118400.0,118390.0,0.75861548]
[1752898478726,0.03678219,118400.0,118390.0,0.75861548]
[1752898479237,0.03678212,118400.0,118390.0,0.75861548]
[1752898479532,0.02833639,118400.0,118390.0,0.75861548]
[1752898479773,0.04522792,118400.0,118390.0,0.53856869]
[1752898479988,0.04522792,118400.0,118390.0,0.75861548]
[1752898480402,0.03678212,118400.0,118390.0,0.75861548]
[1752898480884,0.04522792,118400.0,118390.0,0.75861548]
[1752898481946,0.03678212,118400.0,118390.0,0.75861548]
[1752898482477,0.03678212,118400.0,118390.0,0.53856869]
[1752898482653,0.04522792,118400.0,118390.0,0.75861548]
[1752898484022,0.02833639,118400.0,118390.0,0.75861548]
[1752898484351,0.03678212,118400.0,118390.0,0.75861548]
[1752898484956,0.01144537,118400.0,118390.0,4.48963127]
[1752898485193,0.003,118400.0,118390.0,4.25293148]
[1752898485407,0.0114453,118400.0,118390.0,4.25293148]
[1752898485585,0.01989081,118400.0,118390.0,4.22743548]
[1752898486027,0.0114453,118400.0,118390.0,4.22743548]
[1752898486235,0.01989074,118400.0,118390.0,4.22743548]
[1752898486445,0.0114453,118400.0,118390.0,4.22743548]
[1752898486666,0.01989067,118400.0,118390.0,4.22743548]
[1752898486872,0.003,118400.0,118390.0,4.78933227]
[1752898487898,0.003,118400.0,118390.0,4.78748227]
[1752898490161,0.003,118400.0,118390.0,4.78933227]
[1752898490733,0.002,118400.0,118390.0,4.34923869]
[1752898490900,0.002,118400.0,118390.0,4.78933227]
[1752898491101,0.03455008,118410.0,118400.0,0.19425588]
[1752898491309,0.04501502,118410.0,118400.0,0.85113974]
[1752898491551,0.04812502,118410.0,118400.0,0.85113974]
[1752898491694,0.04812502,118410.0,118400.0,0.41104616]
[1752898491899,0.04812502,118410.0,118400.0,0.85113974]
[1752898492535,0.05012502,118410.0,118400.0,0.85113974]
[1752898493010,0.05857011,118410.0,118400.0,0.85113974]
[1752898493666,0.05012552,118410.0,118400.0,0.8426943]
[1752898493877,0.05957075,118410.0,118400.0,0.85958539]
[1752898494320,0.05112552,118410.0,118400.0,0.85958539]
[1752898494543,0.05112552,118410.0,118400.0,0.86803083]
[1752898495186,0.05112544,118410.0,118400.0,0.86803083]
[1752898495369,0.0753706,118410.0,118400.0,0.85958539]
[1752898495794,0.0595706,118410.0,118400.0,0.4110463]
[1752898496028,0.0595706,118410.0,118400.0,0.85113988]
[1752898496280,0.0595706,118410.0,118400.0,0.85958539]
[1752898496924,0.0595706,118410.0,118400.0,0.85113988]
[1752898497334,0.25123059,118410.0,118400.0,0.83424871]
[1752898497573,0.25123059,118410.0,118400.0,0.84269444]
[1752898498598,0.25123059,118410.0,118400.0,0.8511401]
[1752898498813,0.25123059,118410.0,118400.0,0.84269444]
[1752898499037,0.25123059,118410.0,118400.0,0.8511401]
[1752898499252,0.24278572,118410.0,118400.0,0.84269444]
[1752898499458,0.23434078,118410.0,118400.0,0.84269458]
[1752898499685,0.23434078,118410.0,118400.0,0.62264779]
[1752898499928,0.23434078,118410.0,118400.0,0.63109359]
[1752898500139,0.23434078,118410.0,118400.0,0.4110468]
[1752898500342,0.22589577,118410.0,118400.0,0.62264779]
[1752898500592,0.22589577,118410.0,118400.0,0.63109359]
[1752898500803,0.22589577,118410.0,118400.0,0.62264779]
[1752898501015,0.21745061,118410.0,118400.0,0.62264779]
[1752898501233,0.21745061,118410.0,118400.0,0.63109359]
[1752898501455,0.21745061,118410.0,118400.0,0.62264779]
[1752898501658,0.21745061,118410.0,118400.0,0.63109359]
[1752898501829,0.21745061,118410.0,118400.0,0.64798498]
[1752898502259,0.04854596,118410.0,118400.0,5.32771083]
[1752898502484,0.03423592,118410.0,118400.0,5.10223641]
[1752898502686,0.25428271,118410.0,118400.0,4.88218962]
[1752898502824,0.04268058,118410.0,118400.0,4.88218919]
[1752898503033,0.05112581,118410.0,118400.0,4.84109175]
[1752898503237,0.05112581,118410.0,118400.0,4.82341975]
[1752898503563,0.05112581,118410.0,118400.0,4.80676775]
[1752898504453,0.05112581,118410.0,118400.0,4.75253075]
[1752898505385,0.05112581,118410.0,118400.0,4.73587775]
[1752898506098,0.04268115,118410.0,118400.0,4.72743217]
[1752898506288,0.2115858,118410.0,118400.0,4.71898651]
[1752898506424,0.2115858,118410.0,118400.0,3.92410851]
[1752898507056,0.04268058,118410.0,118400.0,3.80671244]
[1752898507281,0.05112581,118410.0,118400.0,4.02675937]
[1752898507500,0.04268058,118410.0,118400.0,4.01831379]
[1752898508333,0.03423549,118410.0,118400.0,4.02675937]
[1752898508542,0.0426805,118410.0,118400.0,4.02675937]
[1752898508751,0.0426805,118410.0,118400.0,3.94099975]
[1752898508938,0.05112566,118410.0,118400.0,3.93255417]
[1752898509147,0.05112566,118410.0,118400.0,3.92410851]
[1752898509452,0.05112566,118410.0,118400.0,4.08882917]
[1752898510009,0.05112566,118410.0,118400.0,3.95212751]
[1752898510207,0.05112566,118410.0,118400.0,3.93256417]
[1752898510436,0.05112566,118410.0,118400.0,3.92411851]
[1752898510678,0.05112566,118410.0,118400.0,3.93256417]
[1752898511056,0.05112566,118410.0,118400.0,3.92411851]
[1752898511276,0.21158565,118410.0,118400.0,3.90722698]
[1752898511432,0.21158565,118410.0,118400.0,3.91567271]
[1752898511637,0.21158565,118410.0,118400.0,3.92411865]
[1752898511841,0.21158565,118410.0,118400.0,3.66859865]
[1752898512051,0.21158565,118410.0,118400.0,3.45109565]
[1752898512966,0.22728565,118410.0,118400.0,3.14217419]
[1752898513136,0.22589577,118410.0,118400.0,1.25553119]
[1752898513347,0.22589577,118410.0,118400.0,1.19165798]
[1752898513957,0.22589577,118410.0,118400.0,1.20010392]
[1752898514166,0.22589577,118410.0,118400.0,1.19165798]
[1752898514407,0.22589577,118410.0,118400.0,0.76464298]
[1752898514612,0.44594256,118410.0,118400.0,0.76464298]
[1752898514944,0.44594256,118410.0,118400.0,0.54459619]
[1752898515188,0.44594256,118410.0,118400.0,0.08551028]
[1752898515411,0.44594256,118410.0,118400.0,0.21671028]
[1752898515617,0.4374974,118410.0,118400.0,0.21671028]
[1752898516631,0.4374974,118410.0,118400.0,0.38562919]
[1752898518630,0.4374974,118410.0,118400.0,0.21671028]
[1752898518832,0.21745061,118410.0,118400.0,0.21671028]
[1752898519039,0.4374974,118410.0,118400.0,0.21671028]
[1752898519416,0.4374974,118410.0,118400.0,0.38562919]
[1752898520184,0.21745061,118410.0,118400.0,3.62825719]
[1752898520453,0.44594249,118410.0,118400.0,3.60327619]
[1752898520836,0.44594249,118410.0,118400.0,3.39802519]
[1752898521036,0.44594249,118410.0,118400.0,3.00275119]
[1752898521401,0.44568912,118410.0,118400.0,3.00275119]
[1752898521835,0.44568912,118410.0,118400.0,2.91912819]
[1752898522053,0.44568912,118410.0,118400.0,2.50552319]
[1752898524082,0.22564233,118410.0,118400.0,0.38562919]
[1752898524271,0.05673746,118410.0,118400.0,2.49731513]
[1752898524429,0.04242713,118410.0,118400.0,2.82215314]
[1752898524949,0.03398212,118410.0,118400.0,2.8305988]
[1752898525153,0.04242706,118410.0,118400.0,2.8305988]
[1752898525363,0.04242706,118410.0,118400.0,2.74483918]
[1752898525563,0.03398212,118410.0,118400.0,2.75328476]
[1752898525763,0.03398212,118410.0,118400.0,2.74483918]
[1752898525960,0.04242713,118410.0,118400.0,2.74483918]
[1752898526158,0.04242713,118410.0,118400.0,2.73639352]
[1752898526413,0.04242713,118410.0,118400.0,2.5163468]
[1752898526543,0.04242713,118410.0,118400.0,2.74483932]
[1752898526740,0.05087222,118410.0,118400.0,2.73639359]
[1752898526947,0.05087222,118410.0,118400.0,2.74483932]
[1752898527156,0.01196259,118410.0,118400.0,5.95585131]
[1752898527370,0.003,118410.0,118400.0,6.32960081]
[1752898528272,0.003,118410.0,118400.0,6.10955402]
[1752898528471,0.002,118410.0,118400.0,6.10770402]
[1752898528677,0.002,118410.0,118400.0,6.09170402]
[1752898528929,0.28875278,118420.0,118410.0,0.18579461]
[1752898529108,0.29088278,118420.0,118410.0,5.48818451]
[1752898529305,0.07083599,118420.0,118410.0,5.48818451]
[1752898529507,0.07928036,118420.0,118410.0,5.47973964]
[1752898530190,0.07133347,118420.0,118410.0,5.70823144]
[1752898530319,0.08036773,118420.0,118410.0,5.71667638]
[1752898530524,0.08136773,118420.0,118410.0,5.71667638]
[1752898530741,0.08981203,118420.0,118410.0,5.70823144]
[1752898530949,0.08981203,118420.0,118410.0,5.69978643]
[1752898531152,0.08981203,118420.0,118410.0,5.70823144]
[1752898531359,0.08981253,118420.0,118410.0,5.69978643]
[1752898531554,0.08136816,118420.0,118410.0,5.70823144]
[1752898531789,0.08136816,118420.0,118410.0,5.69978643]
[1752898532402,0.05642386,118420.0,118410.0,5.48818451]
[1752898532656,0.04112386,118420.0,118410.0,5.49032451]
[1752898532954,0.04112386,118420.0,118410.0,5.48187964]
[1752898533139,0.04956809,118420.0,118410.0,5.71037159]
[1752898533370,0.06756809,118420.0,118410.0,5.71881653]
[1752898533584,0.05912386,118420.0,118410.0,5.7272614]
[1752898533769,0.05912386,118420.0,118410.0,5.71881653]
[1752898534647,0.06756816,118420.0,118410.0,5.4903248]
[1752898534861,0.08266816,118420.0,118410.0,5.70819159]
[1752898535324,0.08266816,118420.0,118410.0,5.7166366]
[1752898535470,0.08266816,118420.0,118410.0,5.49658981]
[1752898535890,0.08266816,118420.0,118410.0,5.70819159]
[1752898536099,0.08266816,118420.0,118410.0,5.7166366]
[1752898536284,0.07422386,118420.0,118410.0,5.72508154]
[1752898536623,0.08266809,118420.0,118410.0,5.50503475]
[1752898537034,0.08266809,118420.0,118410.0,5.7166366]
[1752898537368,0.08266809,118420.0,118410.0,5.70819159]
[1752898537577,0.08266809,118420.0,118410.0,5.7166366]
[1752898538259,0.07422415,118420.0,118410.0,5.69130134]
[1752898538444,0.08266852,118420.0,118410.0,5.70819158]
[1752898538589,0.08266852,118420.0,118410.0,5.70819166]
[1752898538789,0.07422415,118420.0,118410.0,5.71663667]
[1752898539205,0.08266852,118420.0,118410.0,5.71663667]
[1752898539426,0.07422415,118420.0,118410.0,5.71663667]
[1752898539714,0.09111296,118420.0,118410.0,5.69130134]
[1752898539925,0.23467094,118420.0,118410.0,5.02627472]
[1752898540111,0.23467094,118420.0,118410.0,4.75933393]
[1752898540283,0.23467094,118420.0,118410.0,4.92242472]
[1752898540715,0.23467094,118420.0,118410.0,4.89440372]
[1752898541935,0.23467094,118420.0,118410.0,4.86024472]
[1752898542133,0.23467094,118420.0,118410.0,4.83798972]
[1752898542285,0.22563668,118420.0,118410.0,4.83798972]
[1752898543120,0.22563668,118420.0,118410.0,0.60554172]
[1752898543333,0.22563668,118420.0,118410.0,4.82801072]
[1752898543836,0.22563668,118420.0,118410.0,4.89114734]
[1752898544287,0.22563668,118420.0,118410.0,4.72822672]
[1752898544711,0.22563668,118420.0,118410.0,4.65443072]
[1752898544921,0.22563668,118420.0,118410.0,4.62425872]
[1752898545325,0.21719238,118420.0,118410.0,4.62425872]
[1752898545526,0.21719238,118420.0,118410.0,4.55235872]
[1752898546059,0.21719238,118420.0,118410.0,5.47125455]
[1752898546311,0.22563668,118420.0,118410.0,5.69130134]
[1752898546558,0.22563668,118420.0,118410.0,5.69344134]
[1752898547222,0.22563668,118420.0,118410.0,5.70188657]
[1752898547468,0.05674629,118420.0,118410.0,5.7018865]
[1752898547654,0.04164629,118420.0,118410.0,5.7018865]
[1752898547956,0.05009031,118420.0,118410.0,5.7018865]
[1752898548127,0.03409031,118420.0,118410.0,5.71033173]
[1752898548351,0.03409031,118420.0,118410.0,5.70188657]
[1752898548708,0.04253482,118420.0,118410.0,5.70188657]
[1752898549140,0.04289161,118420.0,118410.0,5.71033173]
[1752898549592,0.04289161,118420.0,118410.0,5.70188657]
[1752898550517,0.05919161,118420.0,118410.0,5.70188657]
[1752898551257,0.06763612,118420.0,118410.0,5.70188657]
[1752898551471,0.05919161,118420.0,118410.0,5.71033173]
[1752898551613,0.05074717,118420.0,118410.0,5.71877682]
[1752898551822,0.05919161,118420.0,118410.0,5.71033173]
[1752898552020,0.05919161,118420.0,118410.0,5.70188657]
[1752898552818,0.06763612,118420.0,118410.0,5.48183978]
[1752898553037,0.23652651,118420.0,118410.0,4.81203055]
[1752898553239,0.25262651,118420.0,118410.0,4.72295934]
[1752898553437,0.25262651,118420.0,118410.0,4.63719972]
[1752898554638,0.25262651,118420.0,118410.0,0.60554172]
[1752898554838,0.25262651,118420.0,118410.0,4.66452172]
[1752898555080,0.25262651,118420.0,118410.0,4.64005472]
[1752898555283,0.25262651,118420.0,118410.0,4.55094272]
[1752898555510,0.25262651,118420.0,118410.0,4.63670234]
[1752898556546,0.25262651,118420.0,118410.0,4.55094272]
[1752898556762,0.24418242,118420.0,118410.0,3.74309465]
[1752898556967,0.23573812,118420.0,118410.0,3.96314144]
[1752898557853,0.23573812,118420.0,118410.0,3.51748365]
[1752898558076,0.23573812,118420.0,118410.0,3.73753044]
[1752898558983,0.23573812,118420.0,118410.0,3.71842044]
[1752898559199,0.23573812,118420.0,118410.0,3.70674244]
[1752898561004,0.23573812,118420.0,118410.0,3.64121644]
[1752898561563,0.23573812,118420.0,118410.0,3.54435044]
[1752898562856,0.23573812,118420.0,118410.0,3.60673609]
[1752898563678,0.23573812,118420.0,118410.0,3.54435044]
[1752898563898,0.05074745,118420.0,118410.0,3.5548456]
[1752898564110,0.0428914,118420.0,118410.0,3.56329061]
[1752898564320,0.0407614,118420.0,118410.0,3.5548456]
[1752898564538,0.04920584,118420.0,118410.0,3.32635365]
[1752898564746,0.0407614,118420.0,118410.0,3.56329069]
[1752898565513,0.0407614,118420.0,118410.0,3.3432439]
[1752898565699,0.0407614,118420.0,118410.0,3.63602549]
[1752898565953,0.04920584,118420.0,118410.0,3.64447058]
[1752898566174,0.04920584,118420.0,118410.0,3.63602549]
[1752898566476,0.04920584,118420.0,118410.0,3.62758033]
[1752898566912,0.05124584,118420.0,118410.0,3.62758033]
[1752898567549,0.05124584,118420.0,118410.0,3.60651433]
[1752898567758,0.05124584,118420.0,118410.0,3.54292456]
[1752898568403,0.05124584,118420.0,118410.0,3.55136972]
[1752898569081,0.0428014,118420.0,118410.0,3.55981481]
[1752898569328,0.0428014,118420.0,118410.0,3.56825982]
[1752898569564,0.05124584,118420.0,118410.0,3.55136972]
[1752898569807,0.05124584,118420.0,118410.0,3.54292456]
[1752898570021,0.05124584,118420.0,118410.0,3.55136972]
[1752898570693,0.05124584,118420.0,118410.0,3.54292456]
[1752898571223,0.05124584,118420.0,118410.0,3.26448954]
[1752898571474,0.05124584,118420.0,118410.0,3.44860633]
[1752898571728,0.05124584,118420.0,118410.0,3.45705156]
[1752898571929,0.06774584,118420.0,118410.0,3.36742644]
[1752898572114,0.06774584,118420.0,118410.0,3.14171888]
[1752898572313,0.07619035,118420.0,118410.0,3.36176567]
[1752898572533,0.07619035,118420.0,118410.0,3.35332044]
[1752898572736,0.09149035,118420.0,118410.0,3.34978844]
[1752898572940,0.09149035,118420.0,118410.0,3.35823367]
[1752898573186,0.09149035,118420.0,118410.0,3.34978844]
[1752898573404,0.08304633,118420.0,118410.0,3.34978844]
[1752898573737,0.08304633,118420.0,118410.0,3.35823367]
[1752898573942,0.08304633,118420.0,118410.0,3.34978844]
[1752898574173,0.08304633,118420.0,118410.0,3.35823367]
[1752898574570,0.08304633,118420.0,118410.0,3.34978844]
[1752898575187,0.08304633,118420.0,118410.0,3.35823367]
[1752898575619,0.08304633,118420.0,118410.0,3.34978844]
[1752898576082,0.08304633,118420.0,118410.0,3.35823367]
[1752898576524,0.08304633,118420.0,118410.0,3.12974165]
[1752898576745,0.08304633,118420.0,118410.0,3.34020367]
[1752898576980,0.08304633,118420.0,118410.0,3.33175844]
[1752898577417,0.08304633,118420.0,118410.0,3.34020367]
[1752898577598,0.08304633,118420.0,118410.0,3.33175844]
[1752898577812,0.08304633,118420.0,118410.0,3.34020367]
[1752898578139,0.08304633,118420.0,118410.0,3.28389967]
[1752898578748,0.08304633,118420.0,118410.0,3.27545444]
[1752898579173,0.08304633,118420.0,118410.0,3.04098365]
[1752898579385,0.25193672,118420.0,118410.0,3.04098365]
[1752898579611,0.25193672,118420.0,118410.0,3.26103044]
[1752898580240,0.25193672,118420.0,118410.0,3.17431344]
[1752898580532,0.25193672,118420.0,118410.0,3.17226344]
[1752898581042,0.24349249,118420.0,118410.0,2.95221665]
[1752898581251,0.24349249,118420.0,118410.0,2.91974365]
[1752898583374,0.24349249,118420.0,118410.0,2.88028865]
[1752898584219,0.24349249,118420.0,118410.0,3.10033544]
[1752898586981,0.24349249,118420.0,118410.0,2.67961065]
[1752898589268,0.24349249,118420.0,118410.0,2.66267265]
[1752898589935,0.23504812,118420.0,118410.0,2.66267265]
[1752898590189,0.23504812,118420.0,118410.0,2.58744265]
[1752898590635,0.23504812,118420.0,118410.0,2.80748944]
[1752898590823,0.23453284,118420.0,118410.0,2.80748944]
[1752898593035,0.23453284,118420.0,118410.0,2.77807544]
[1752898593689,0.23453284,118420.0,118410.0,2.45608165]
[1752898593910,0.23453284,118420.0,118410.0,1.84368765]
[1752898594121,0.23453284,118420.0,118410.0,2.06373444]
[1752898596612,0.20273284,118420.0,118410.0,2.06569444]
[1752898597254,0.20273284,118420.0,118410.0,1.84564765]
[1752898597478,0.20273284,118420.0,118410.0,2.06569444]
[1752898597696,0.20273284,118420.0,118410.0,1.84564765]
[1752898597899,0.20273284,118420.0,118410.0,2.06569444]
[1752898602328,0.20273284,118420.0,118410.0,1.84564765]
[1752898602553,0.20273284,118420.0,118410.0,2.06569444]
[1752898602955,0.20273284,118420.0,118410.0,1.82300265]
[1752898603211,0.21853284,118420.0,118410.0,2.02639844]
[1752898603428,0.21853284,118420.0,118410.0,1.80635165]
[1752898603762,0.21853284,118420.0,118410.0,2.02639844]
[1752898604027,0.21853284,118420.0,118410.0,1.80635165]
[1752898604493,0.21853284,118420.0,118410.0,2.02639844]
[1752898605035,0.21853284,118420.0,118410.0,2.00974644]
[1752898605464,0.21853284,118420.0,118410.0,1.78969965]
[1752898605678,0.21853284,118420.0,118410.0,1.99309444]
[1752898606113,0.21853284,118420.0,118410.0,1.77304765]
[1752898606312,0.21853284,118420.0,118410.0,1.99309444]
[1752898607231,0.21853284,118420.0,118410.0,1.98206144]
[1752898607466,0.20973154,118420.0,118410.0,1.98206144]
[1752898608450,0.20973154,118420.0,118410.0,1.76201465]
[1752898608631,0.20973154,118420.0,118410.0,1.98206144]
[1752898609719,0.20973154,118420.0,118410.0,1.76201465]
[1752898609944,0.20973154,118420.0,118410.0,1.98206144]
[1752898610159,0.20973154,118420.0,118410.0,0.52175144]
[1752898610338,0.20973154,118420.0,118410.0,1.97817444]
[1752898610761,0.20973154,118420.0,118410.0,1.95498844]
[1752898611230,0.20973154,118420.0,118410.0,1.94241844]
[1752898611633,0.20973154,118420.0,118410.0,1.92324844]
[1752898612388,0.21848509,118420.0,118410.0,1.92324844]
[1752898612598,0.21848509,118420.0,118410.0,1.90664844]
[1752898614561,0.21848509,118420.0,118410.0,1.86664844]
[1752898615337,0.21004065,118420.0,118410.0,1.64660165]
[1752898615539,0.21004065,118420.0,118410.0,1.86664844]
[1752898616318,0.21004065,118420.0,118410.0,1.477697]
[1752898616523,0.21004065,118420.0,118410.0,1.69774379]
[1752898616959,0.21004065,118420.0,118410.0,1.86664844]
[1752898617320,0.21004065,118420.0,118410.0,1.85275344]
[1752898618747,0.21004065,118420.0,118410.0,1.68384879]
[1752898620338,0.22574065,118420.0,118410.0,0.13084]
[1752898621021,0.22574065,118420.0,118400.0,0.50891646]
[1752898621022,0.43734293,118420.0,118400.0,0.50891646]
[1752898621256,0.43734293,118420.0,118380.0,0.63932876]
[1752898621257,0.19427243,118390.0,118380.0,0.63932876]
[1752898621493,0.19427243,118390.0,118380.0,6.41761583]
[1752898621707,0.01689267,118390.0,118380.0,5.98596926]
[1752898621923,0.02533918,118390.0,118380.0,6.52026933]
[1752898622127,0.02533911,118390.0,118380.0,6.52026933]
[1752898622539,0.02533911,118390.0,118380.0,6.49246933]
[1752898622767,0.03378562,118390.0,118380.0,6.49246933]
[1752898622973,0.03378562,118390.0,118380.0,6.50826933]
[1752898623191,0.02533911,118390.0,118380.0,6.52326933]
[1752898623401,0.03378562,118390.0,118380.0,6.52326933]
[1752898625450,0.02533911,118390.0,118380.0,6.52326933]
[1752898626342,0.01689238,118390.0,118380.0,6.52326933]
[1752898626615,0.17736478,118400.0,118390.0,1.20372513]
[1752898626842,0.17736478,118400.0,118390.0,0.71772376]
[1752898627070,0.17736478,118400.0,118390.0,0.7177239]
[1752898627301,0.17736478,118400.0,118390.0,0.62411348]
[1752898627506,0.17736478,118400.0,118390.0,1.15154048]
[1752898627727,0.17736478,118400.0,118390.0,1.09484048]
[1752898627952,0.17736478,118400.0,118390.0,0.77484048]
[1752898628599,0.16891891,118400.0,118390.0,0.77484048]
[1752898628813,0.16891891,118400.0,118390.0,0.77584048]
[1752898629439,0.16891891,118400.0,118390.0,0.78428699]
[1752898629857,0.16891891,118400.0,118390.0,0.5642402]
[1752898630053,0.16891891,118400.0,118390.0,0.78428699]
[1752898630524,0.16891891,118400.0,118390.0,0.5642402]
[1752898630719,0.16891891,118400.0,118390.0,0.77584048]
[1752898631361,0.16891891,118400.0,118390.0,0.77684048]
[1752898631767,0.16891891,118400.0,118390.0,0.59946072]
[1752898631956,0.16891891,118400.0,118390.0,0.44873372]
[1752898632676,0.17197891,118400.0,118390.0,0.44873372]
[1752898633300,0.17197891,118400.0,118390.0,0.44028707]
[1752898633467,0.17403891,118400.0,118390.0,0.44028707]
[1752898634665,0.17403891,118400.0,118390.0,0.83282807]
[1752898635109,0.17403891,118400.0,118390.0,0.22024028]
[1752898635321,0.17403891,118400.0,118390.0,0.44028707]
[1752898635743,0.17403891,118400.0,118390.0,0.82300607]
[1752898635918,0.17403891,118400.0,118390.0,0.83145272]
[1752898636276,0.17403891,118400.0,118390.0,0.8398993]
[1752898636490,0.17403891,118400.0,118390.0,0.83145272]
[1752898636682,0.17403891,118400.0,118390.0,0.55315272]
[1752898637801,0.17403891,118400.0,118390.0,0.22024028]
[1752898638030,0.17403891,118400.0,118390.0,0.54630607]
[1752898638740,0.17403891,118400.0,118390.0,0.55475272]
[1752898638901,0.17403891,118400.0,118390.0,0.33470593]
[1752898639107,0.17403891,118400.0,118390.0,0.55475272]
[1752898640276,0.17403891,118400.0,118390.0,0.73213248]
[1752898640636,0.17403891,118400.0,118390.0,0.44873372]
[1752898640837,0.17403891,118400.0,118390.0,0.55315272]
[1752898641012,0.17403891,118400.0,118390.0,0.44873372]
[1752898641212,0.17403891,118400.0,118390.0,0.55315272]
[1752898641417,0.17403891,118400.0,118390.0,0.44873372]
[1752898642256,0.17403891,118400.0,118390.0,0.22024028]
[1752898642493,0.17403891,118400.0,118390.0,0.44028707]
[1752898643689,0.17403891,118400.0,118390.0,0.61669307]
[1752898643966,0.17403891,118400.0,118390.0,0.59939407]
[1752898644792,0.17403891,118400.0,118390.0,0.44028707]
[1752898647304,0.17403891,118400.0,118390.0,0.22024028]
[1752898647512,0.20553891,118400.0,118390.0,0.43823707]
[1752898650629,0.17403891,118400.0,118390.0,0.43823707]
[1752898650863,0.17403891,118400.0,118390.0,0.44035707]
[1752898651010,0.17403891,118400.0,118390.0,0.22031028]
[1752898651211,0.17403891,118400.0,118390.0,0.43817287]
[1752898653731,0.20463891,118400.0,118390.0,0.43817287]
[1752898654985,0.18903891,118400.0,118390.0,0.43817287]
[1752898655894,0.20463891,118400.0,118390.0,0.21600608]
[1752898656047,0.20463891,118400.0,118390.0,0.43605287]
[1752898657269,0.20463891,118400.0,118390.0,0.21600608]
[1752898657483,0.20463891,118400.0,118390.0,0.43605287]
[1752898658730,0.20959683,118400.0,118390.0,0.21600608]
[1752898658939,0.20463891,118400.0,118390.0,0.43605287]
[1752898660399,0.17403891,118400.0,118390.0,0.43605287]
[1752898661397,0.17403891,118400.0,118390.0,0.43817287]
[1752898662276,0.17403891,118400.0,118390.0,0.21812608]
[1752898662480,0.17403891,118400.0,118390.0,0.43817287]
[1752898663272,0.17899683,118400.0,118390.0,0.43817287]
[1752898663443,0.18923891,118400.0,118390.0,0.43817287]
[1752898663673,0.18923891,118400.0,118390.0,0.43605287]
[1752898664231,0.20553891,118400.0,118390.0,0.43605287]
[1752898664674,0.20553891,118400.0,118390.0,0.21600608]